[Event "WTCC-50 2018"]
[Site "Radebeul"]
[Date "2018.07.15"]
[Round "9"]
[White "Sirotkina, Nina"]
[Black "Brueggemann, Joachim"]
[Result "1/2-1/2"]
[ECO "A45"]
[WhiteElo "2175"]
[BlackElo "2293"]
[Annotator "NA"]
[PlyCount "60"]
[EventDate "2018.07.07"]
[EventType "team-tourn"]
[EventCountry "GER"]
[SourceTitle "playchess.com"]
[Source "ChessBase"]
[SourceQuality "1"]
[TimeControl "40/5400+30:1800+30"]

1. d4 {[%emt 0:00:00]} Nf6 {[%emt 0:00:00]} 2. Bf4 {[%emt 0:00:06]} e6 {[%emt 0:00:00]} 3. e3 {[%emt 0:00:55]} b6 {[%emt 0:00:32]} 4. Nf3 {[%emt 0:02:53]} Bb7 {[%emt 0:00:06]} 5. Be2 {[%emt 0:14:14]} Be7 {[%emt 0:00:06]} 6. h3 {[%emt 0:00:34]} O-O {[%emt 0:00:15]} 7. O-O {[%emt 0:01:52]} d6 {[%emt 0:06:07]} 8. c4 {[%emt 0:02:39]} Nbd7 {[%emt 0:00:05]} 9. Nc3 {[%emt 0:00:40]} Ne4 {[%emt 0:01:40]} 10. Nxe4 {[%emt 0:02:29]} Bxe4 {[%emt 0:01:40]} 11. Nd2 {[%emt 0:05:30]} Bb7 {[%emt 0:00:10]} 12. Bf3 {[%emt 0:01:02]} Bxf3 {[%emt 0:12:07]} 13. Nxf3 {[%emt 0:04:15]} a5 {[%emt 0:03:43]} 14. Qe2 {[%emt 0:18:07]} Qc8 {[%emt 0:06:43]} 15. Rfd1 {[%emt 0:05:22]} Qb7 {[%emt 0:05:30]} 16. Rac1 {[%emt 0:04:09]} Nf6 {[%emt 0:07:18]} 17. Bg5 {[%emt 0:03:35]} Rfe8 {[%emt 0:02:31]} 18. Rc2 {[%emt 0:00:49]} a4 {[%emt 0:04:54]} 19. Nd2 {[%emt 0:05:20]} h6 {[%emt 0:02:25]} 20. Bh4 {[%emt 0:00:57]} Ra5 {[%emt 0:07:56]} 21. e4 {[%emt 0:04:14]} Nd7 {[%emt 0:05:04]} 22. Bxe7 {[%emt 0:02:23]} Rxe7 {[%emt 0:00:01]} 23. Nb1 {[%emt 0:01:29]} e5 {[%emt 0:01:57]} 24. d5 {[%emt 0:01:58]} Nc5 {[%emt 0:01:38]} 25. Nc3 {[%emt 0:00:35]} Ra8 {[%emt 0:00:12]} 26. Rcc1 {[%emt 0:02:12]} Qc8 {[%emt 0:02:24]} 27. Qc2 {[%emt 0:00:37]} Qd7 {[%emt 0:02:31]} 28. Ra1 {[%emt 0:03:45]} Rf8 {[%emt 0:00:10]} 29. b4 axb3 30. axb3 f5 1/2-1/2

[Event "WTCC-50 2018"]
[Site "Radebeul"]
[Date "2018.07.15"]
[Round "9"]
[White "Boehm, Martin"]
[Black "Limpert, Michael"]
[Result "1-0"]
[ECO "D44"]
[WhiteElo "2172"]
[BlackElo "2159"]
[Annotator "NA"]
[PlyCount "55"]
[EventDate "2018.07.07"]
[EventType "team-tourn"]
[EventCountry "GER"]
[SourceTitle "playchess.com"]
[Source "ChessBase"]
[SourceQuality "1"]
[TimeControl "40/5400+30:1800+30"]

1. d4 {[%emt 0:00:00]} d5 {[%emt 0:00:00]} 2. c4 {[%emt 0:00:00]} c6 {[%emt 0:00:00]} 3. Nc3 {[%emt 0:00:00]} Nf6 {[%emt 0:01:45]} 4. Nf3 {[%emt 0:00:56]} e6 {[%emt 0:00:23]} 5. Bg5 {[%emt 0:00:14]} dxc4 {[%emt 0:00:12]} 6. e4 {[%emt 0:04:00]} b5 {[%emt 0:00:30]} 7. e5 {[%emt 0:01:30]} h6 {[%emt 0:00:02]} 8. Bh4 {[%emt 0:00:11]} g5 {[%emt 0:00:04]} 9. Nxg5 {[%emt 0:05:55]} hxg5 {[%emt 0:00:35]} 10. Bxg5 {[%emt 0:00:04]} Nbd7 {[%emt 0:00:16]} 11. exf6 {[%emt 0:02:12]} Qa5 {[%emt 0:02:21]} 12. h4 {[%emt 0:05:08]} Bb7 {[%emt 0:01:09]} 13. Be2 {[%emt 0:11:18]} O-O-O {[%emt 0:00:14]} 14. O-O {[%emt 0:01:27]} Ne5 {[%emt 0:43:53]} 15. Qc1 {[%emt 0:17:27]} Nd3 {[%emt 0:08:44]} 16. Bxd3 {[%emt 0:03:28]} cxd3 {[%emt 0:00:01]} 17. Qe3 {[%emt 0:00:58]} Qb4 {[%emt 0:04:33]} 18. d5 {[%emt 0:09:06]} exd5 {[%emt 0:21:06]} 19. Qxd3 {[%emt 0:02:16]} Qg4 {[%emt 0:04:15]} 20. Rac1 {[%emt 0:09:17]} b4 {[%emt 0:04:14]} 21. Nb5 {[%emt 0:08:02]} Bd6 {[%emt 0:05:08]} 22. Qe3 {[%emt 0:06:49]} d4 {[%emt 0:00:39]} 23. Nxd6+ {[%emt 0:02:49]} Rxd6 {[%emt 0:00:08]} 24. Qb3 {[%emt 0:00:28]} Rd7 {[%emt 0:01:14]} 25. Qxb4 {[%emt 0:01:45]} Kb8 {[%emt 0:00:15]} 26. f3 {[%emt 0:01:00]} Qe6 {[%emt 0:00:47]} 27. Rfe1 {[%emt 0:01:20]} Qd6 {[%emt 0:00:28]} 28. Qxd6+ 1-0

[Event "WTCC-50 2018"]
[Site "Radebeul"]
[Date "2018.07.15"]
[Round "9"]
[White "Pruefer, Friedbert"]
[Black "Pieper, Thomas"]
[Result "1/2-1/2"]
[ECO "A45"]
[WhiteElo "2172"]
[BlackElo "2208"]
[Annotator "NA"]
[PlyCount "97"]
[EventDate "2018.07.07"]
[EventType "team-tourn"]
[EventCountry "GER"]
[SourceTitle "playchess.com"]
[Source "ChessBase"]
[SourceQuality "1"]
[TimeControl "40/5400+30:1800+30"]

1. d4 {[%emt 0:00:00]} Nf6 {[%emt 0:00:00]} 2. g3 {[%emt 0:00:00]} g6 {[%emt 0:00:27]} 3. Bg2 {[%emt 0:00:00]} Bg7 {[%emt 0:01:02]} 4. e4 {[%emt 0:00:08]} d6 {[%emt 0:00:28]} 5. Nc3 {[%emt 0:00:05]} O-O {[%emt 0:01:01]} 6. Nge2 {[%emt 0:00:10]} e5 {[%emt 0:06:24]} 7. h3 {[%emt 0:00:29]} exd4 {[%emt 0:09:08]} 8. Nxd4 {[%emt 0:00:10]} Re8 {[%emt 0:03:28]} 9. O-O {[%emt 0:01:53]} Nbd7 {[%emt 0:02:45]} 10. Re1 {[%emt 0:12:10]} Nb6 {[%emt 0:02:07] B07: Pirc Defence: Miscellaneous Systems} (10... a6 11. a4 Rb8 12. a5 Nc5 13. Bf4 Nh5 14. Be3 Nf6 15. Bf4 Nh5 16. Bc1 d5 17. Nb3 Nxb3 18. cxb3 d4 19. Nd5 Be6 20. Bd2 {0-1 (33) Malakhov,V (2694)-Mamedov,R (2659) Dubai 2014}) 11. Nde2 {[%emt 0:14:50]} c6 {[%emt 0:09:31]} 12. Nf4 {[%emt 0:06:33]} Be6 $146 {[%emt 0:09:11]} ({Predecessor:} 12... Qc7 13. b3 Be6 14. Bb2 Rad8 15. Nxe6 Rxe6 16. Qd2 Rde8 17. Rad1 {1-0 (39) Davis,L (2153)-Gokhale,A (2196) Philadelphia 2005}) 13. Nxe6 {[%emt 0:04:37]} fxe6 {[%emt 0:04:21]} 14. Qe2 {[%emt 0:07:54]} d5 {[%emt 0:07:50]} 15. e5 {[%emt 0:01:01]} Nfd7 {[%emt 0:00:06]} 16. f4 {[%emt 0:00:56]} Nc8 {[%emt 0:01:52]} 17. a4 {[%emt 0:09:20]} Ne7 {[%emt 0:02:55]} 18. Be3 {[%emt 0:03:50]} b6 {[%emt 0:09:40]} 19. Bf2 {[%emt 0:02:02]} g5 {[%emt 0:01:04]} 20. Qh5 {[%emt 0:07:10]} gxf4 {[%emt 0:07:41]} 21. gxf4 {[%emt 0:00:16]} Ng6 {[%emt 0:00:41]} 22. Bg3 {[%emt 0:00:41]} Rf8 {[%emt 0:04:22]} 23. Rf1 {[%emt 0:00:30]} Rf5 {[%emt 0:00:49]} 24. Qg4 {[%emt 0:00:23]} Ndf8 {[%emt 0:00:38]} 25. h4 {[%emt 0:04:39]} h5 {[%emt 0:00:41]} 26. Qe2 {[%emt 0:00:18]} Bh6 {[%emt 0:03:32]} 27. Bh3 {[%emt 0:02:10]} Nxf4 {[%emt 0:01:48]} 28. Bxf4 {[%emt 0:00:21]} Rxf4 {[%emt 0:00:49]} 29. Rxf4 {[%emt 0:00:33]} Bxf4 {[%emt 0:00:02]} 30. Qxh5 {[%emt 0:00:22]} Qe8 {[%emt 0:01:58]} 31. Qe2 {[%emt 0:12:05]} Qe7 {[%emt 0:04:06]} 32. Qg4+ {[%emt 0:00:21]} Qg7 {[%emt 0:00:02]} 33. Re1 {[%emt 0:00:43]} Qxg4+ {[%emt 0:01:58]} 34. Bxg4 {[%emt 0:00:01]} Bg3 {[%emt 0:01:00]} 35. Re2 {[%emt 0:00:36]} Bxh4 {[%emt 0:00:49]} 36. Rg2 $11 {[%emt 0:00:26]} Kf7 {[%emt 0:01:44]} 37. Bh5+ {[%emt 0:00:29]} Ke7 {[%emt 0:00:01]} 38. Rg7+ {[%emt 0:00:41]} Kd8 {[%emt 0:00:05]} 39. Ne2 {[%emt 0:04:53]} Be7 {[%emt 0:00:58]} 40. Nf4 {[%emt 0:03:44]} Rc8 {[%emt 0:00:53]} 41. Kf1 {[%emt 0:32:16]} a5 {[%emt 0:17:32]} 42. Bg4 {[%emt 0:00:00]} Bc5 {[%emt 0:03:28]} 43. Nxe6+ {[%emt 0:00:00]} Nxe6 {[%emt 0:00:24]} 44. Bxe6 {[%emt 0:00:00]} Rc7 {[%emt 0:00:20]} 45. Rg8+ {[%emt 0:00:00]} Ke7 {[%emt 0:00:01]} 46. Rg7+ {[%emt 0:00:00]} Kd8 {[%emt 0:00:01]} 47. Rg8+ {[%emt 0:00:00]} Ke7 {[%emt 0:00:02]} 48. Rg7+ {[%emt 0:00:00]} Kd8 {[%emt 0:00:02]} 49. Ke1 1/2-1/2

[Event "WTCC-50 2018"]
[Site "Radebeul"]
[Date "2018.07.15"]
[Round "9"]
[White "Sazonova, Elena N"]
[Black "Ruether, Rudolf"]
[Result "1/2-1/2"]
[ECO "C11"]
[WhiteElo "2146"]
[BlackElo "2118"]
[Annotator "NA"]
[PlyCount "36"]
[EventDate "2018.07.07"]
[EventType "team-tourn"]
[EventCountry "GER"]
[SourceTitle "playchess.com"]
[Source "ChessBase"]
[SourceQuality "1"]
[TimeControl "40/5400+30:1800+30"]

1. e4 {[%emt 0:00:00]} e6 {[%emt 0:00:00]} 2. Nf3 {[%emt 0:01:00]} d5 {[%emt 0:04:02]} 3. Nc3 {[%emt 0:00:26]} Nf6 4. e5 {[%emt 0:00:09]} Nfd7 {[%emt 0:08:13]} 5. d4 {[%emt 0:00:06]} c5 {[%emt 0:00:07]} 6. dxc5 {[%emt 0:00:08]} Nc6 {[%emt 0:02:39]} 7. Bf4 {[%emt 0:00:08]} Nxc5 {[%emt 0:04:20]} 8. Qd2 {[%emt 0:09:09]} a6 {[%emt 0:03:30]} 9. O-O-O {[%emt 0:11:50]} Be7 {[%emt 0:01:30]} 10. h4 {[%emt 0:00:50]} b5 {[%emt 0:05:33]} 11. Nd4 {[%emt 0:04:32]} Nxd4 {[%emt 0:11:04]} 12. Qxd4 {[%emt 0:00:20]} b4 {[%emt 0:00:34]} 13. Nb1 {[%emt 0:13:38]} Ne4 {[%emt 0:08:43]} 14. Be3 {[%emt 0:00:54]} O-O {[%emt 0:09:47]} 15. Qb6 {[%emt 0:09:04]} Qxb6 {[%emt 0:07:49]} 16. Bxb6 {[%emt 0:00:26]} a5 {[%emt 0:00:09]} 17. Nd2 {[%emt 0:10:28]} Nxd2 {[%emt 0:03:53]} 18. Rxd2 {[%emt 0:01:44]} Ba6 {[%emt 0:00:41]} 1/2-1/2

[Event "WTCC-50 2018"]
[Site "Radebeul"]
[Date "2018.07.15"]
[Round "9"]
[White "Barron, Michael"]
[Black "Kudrin, Sergey"]
[Result "0-1"]
[ECO "B70"]
[WhiteElo "2123"]
[BlackElo "2468"]
[Annotator "RC"]
[PlyCount "94"]
[EventDate "2018.07.07"]
[EventType "team-tourn"]
[EventCountry "GER"]
[SourceTitle "playchess.com"]
[Source "ChessBase"]
[SourceQuality "1"]
[TimeControl "40/5400+30:1800+30"]

1. e4 {[%emt 0:00:00]} c5 {[%emt 0:00:00]} 2. Nf3 {[%emt 0:00:00]} d6 {[%emt 0:00:02]} 3. d4 {[%emt 0:00:00]} cxd4 {[%emt 0:00:10]} 4. Nxd4 {[%emt 0:00:00]} Nf6 {[%emt 0:00:08]} 5. Nc3 {[%emt 0:00:00]} g6 {[%emt 0:00:07]} 6. Be2 {[%emt 0:00:00]} Bg7 {[%emt 0:00:09]} 7. O-O {[%emt 0:00:00]} O-O {[%emt 0:00:10]} 8. Kh1 {[%emt 0:00:03]} Nc6 {[%emt 0:00:17]} 9. Nb3 {[%emt 0:00:02]} a6 {[%emt 0:01:25]} 10. f4 {[%emt 0:00:09]} b5 {[%emt 0:00:23]} 11. Bf3 {[%emt 0:00:01]} Bb7 {[%emt 0:00:13]} 12. Nd5 {[%emt 0:00:13]} Nd7 {[%emt 0:00:51]} 13. c3 {[%emt 0:00:07]} e6 {[%emt 0:01:13]} 14. Ne3 {[%emt 0:00:03]} Qc7 {[%emt 0:00:15]} 15. Qe2 {[%emt 0:00:59]} a5 {[%emt 0:02:30]} 16. Rd1 {[%emt 0:03:14]} b4 {[%emt 0:10:04]} 17. Nd4 {[%emt 0:01:11]} Nxd4 {[%emt 0:05:14]} 18. cxd4 {[%emt 0:00:02]} e5 {[%emt 0:08:29]} 19. dxe5 {[%emt 0:03:15]} dxe5 {[%emt 0:01:39]} 20. Nd5 {[%emt 0:00:10]} Bxd5 {[%emt 0:00:32]} 21. exd5 {[%emt 0:00:13]} Qd6 {[%emt 0:03:51]} 22. g3 {[%emt 0:00:32]} Rfe8 {[%emt 0:00:50]} 23. fxe5 {[%emt 0:04:56]} Bxe5 {[%emt 0:04:40]} 24. Qg2 {[%emt 0:05:57]} Kg7 {[%emt 0:17:43]} 25. Rb1 {[%emt 0:01:23]} Rac8 {[%emt 0:05:07]} 26. b3 {[%emt 0:00:26]} h5 {[%emt 0:00:48]} 27. Qd2 {[%emt 0:05:55]} Rh8 {[%emt 0:03:52]} 28. Bb2 {[%emt 0:00:22]} h4 {[%emt 0:00:22]} 29. Kg2 {[%emt 0:13:19]} Bc3 {[%emt 0:10:02]} 30. Rbc1 {[%emt 0:03:20]} Qf6 {[%emt 0:02:20]} 31. Bxc3 {[%emt 0:00:38]} Rxc3 {[%emt 0:01:23]} 32. Rxc3 {[%emt 0:05:07]} bxc3 {[%emt 0:01:14]} 33. Qf4 {[%emt 0:10:47]} Ne5 {[%emt 0:02:13]} 34. Be4 {[%emt 0:10:21]} h3+ {[%emt 0:06:01]} 35. Kg1 {[%emt 0:07:11]} Qb6+ {[%emt 0:06:19]} 36. Qf2 {[%emt 0:04:13]} Qxf2+ {[%emt 0:00:32]} 37. Kxf2 {[%emt 0:00:01]} f5 {[%emt 0:00:08]} 38. Bd3 {[%emt 0:02:29]} Ng4+ {[%emt 0:02:53]} 39. Kg1 {[%emt 0:02:36]} Ne3 {[%emt 0:01:12]} 40. Rc1 {[%emt 0:00:16]} Nxd5 {[%emt 0:01:19]} 41. Bc4 {[%emt 0:30:01]} Rd8 {[%emt 0:30:33]} 42. Kf2 {[%emt 0:01:58]} Nf6 {[%emt 0:00:13]} 43. Ke3 {[%emt 0:01:53]} Ng4+ {[%emt 0:00:33]} 44. Kf4 {[%emt 0:03:45]} Rd4+ {[%emt 0:00:26]} 45. Kf3 {[%emt 0:00:07]} Ne5+ {[%emt 0:03:06]} 46. Ke3 {[%emt 0:00:02]} Re4+ {[%emt 0:00:08]} 47. Kf2 {[%emt 0:01:05]} Rxc4 {[%emt 0:00:10]} 0-1

[Event "WTCC-50 2018"]
[Site "Radebeul"]
[Date "2018.07.15"]
[Round "9"]
[White "Fegan, Chris"]
[Black "Polster, Wolfgang"]
[Result "0-1"]
[ECO "A80"]
[WhiteElo "2040"]
[BlackElo "2203"]
[Annotator "NA"]
[PlyCount "72"]
[EventDate "2018.07.07"]
[EventType "team-tourn"]
[EventCountry "GER"]
[SourceTitle "playchess.com"]
[Source "ChessBase"]
[SourceQuality "1"]
[TimeControl "40/5400+30:1800+30"]

1. d4 f5 2. Bg5 {[%emt 0:01:29]} g6 {[%emt 0:00:48]} 3. h4 {[%emt 0:00:16]} Bg7 {[%emt 0:01:14]} 4. Nc3 {[%emt 0:01:13]} Nc6 {[%emt 0:03:44]} 5. d5 {[%emt 0:04:36]} Ne5 {[%emt 0:01:02]} 6. e4 {[%emt 0:00:53]} d6 {[%emt 0:04:38]} 7. Nf3 {[%emt 0:06:21]} Nxf3+ {[%emt 0:04:57]} 8. Qxf3 {[%emt 0:00:37]} fxe4 {[%emt 0:03:50]} 9. Nxe4 {[%emt 0:01:41]} c6 {[%emt 0:01:12]} 10. O-O-O {[%emt 0:02:05]} Bf5 {[%emt 0:13:47]} 11. Bc4 {[%emt 0:11:39]} Qb6 {[%emt 0:02:59]} 12. Bb3 {[%emt 0:15:03]} O-O-O {[%emt 0:01:45]} 13. dxc6 {[%emt 0:04:55]} bxc6 {[%emt 0:02:41]} 14. Be3 {[%emt 0:06:34]} Qb7 {[%emt 0:04:05]} 15. g4 {[%emt 0:04:11]} Bxe4 {[%emt 0:02:43]} 16. Qxe4 {[%emt 0:00:06]} d5 {[%emt 0:02:04]} 17. Qa4 {[%emt 0:02:13]} Rd7 {[%emt 0:06:35]} 18. c4 {[%emt 0:05:13]} e6 {[%emt 0:05:53]} 19. Rd2 {[%emt 0:02:17]} Nf6 {[%emt 0:01:54]} 20. Kb1 {[%emt 0:05:57]} Ne4 {[%emt 0:00:36]} 21. Rc2 {[%emt 0:03:09]} d4 {[%emt 0:00:37]} 22. c5 {[%emt 0:00:54]} Re8 {[%emt 0:01:04]} 23. Rc4 {[%emt 0:02:34]} Qb5 {[%emt 0:00:45]} 24. Qa3 {[%emt 0:02:37]} dxe3 {[%emt 0:01:30]} 25. Rxe4 {[%emt 0:00:30]} exf2 {[%emt 0:00:34]} 26. Bc4 {[%emt 0:02:32]} Qb8 {[%emt 0:02:17]} 27. Bxe6 {[%emt 0:02:34]} Kd8 {[%emt 0:00:19]} 28. Rb4 {[%emt 0:03:48]} Qxb4 {[%emt 0:03:24]} 29. Qxb4 {[%emt 0:00:30]} Rxe6 {[%emt 0:00:06]} 30. Qb8+ {[%emt 0:06:43]} Ke7 {[%emt 0:00:11]} 31. Qg8 {[%emt 0:00:16]} Kf6 {[%emt 0:05:29]} 32. g5+ {[%emt 0:01:08]} Kf5 {[%emt 0:00:06]} 33. Qc8 {[%emt 0:00:52]} Rd2 {[%emt 0:00:55]} 34. Rf1 {[%emt 0:00:55]} Rxb2+ {[%emt 0:00:46]} 35. Kc1 {[%emt 0:00:33]} Rxa2 {[%emt 0:00:34]} 36. Qg8 {[%emt 0:00:34]} Re1+ {[%emt 0:00:09]} 0-1

[Event "WTCC-50 2018"]
[Site "Radebeul"]
[Date "2018.07.15"]
[Round "9"]
[White "Vollak, Andreas"]
[Black "Ernst, Michael"]
[Result "0-1"]
[ECO "A46"]
[WhiteElo "2027"]
[BlackElo "2156"]
[Annotator "NA"]
[PlyCount "64"]
[EventDate "2018.07.07"]
[EventType "team-tourn"]
[EventCountry "GER"]
[SourceTitle "playchess.com"]
[Source "ChessBase"]
[SourceQuality "1"]
[TimeControl "40/5400+30:1800+30"]

1. d4 {[%emt 0:00:00]} Nf6 {[%emt 0:00:00]} 2. Nf3 {[%emt 0:00:00]} d5 {[%emt 0:00:00]} 3. c4 {[%emt 0:00:35]} e6 {[%emt 0:00:00]} 4. g3 {[%emt 0:00:52]} dxc4 {[%emt 0:00:45]} 5. Qa4+ {[%emt 0:01:04]} Nbd7 {[%emt 0:00:55]} 6. Bg2 {[%emt 0:02:28]} a6 {[%emt 0:00:39]} 7. Qxc4 {[%emt 0:00:32]} b5 {[%emt 0:00:09]} 8. Qc2 {[%emt 0:01:46]} Bb7 {[%emt 0:00:09]} 9. Bd2 {[%emt 0:04:38]} c5 {[%emt 0:01:02]} 10. O-O {[%emt 0:10:08]} Rc8 {[%emt 0:02:42]} 11. dxc5 {[%emt 0:07:40]} Bxc5 {[%emt 0:01:10]} 12. Qd1 {[%emt 0:02:48]} O-O {[%emt 0:01:00]} 13. Nc3 {[%emt 0:00:31]} Qb6 {[%emt 0:02:38]} 14. e3 {[%emt 0:08:04]} Rfd8 {[%emt 0:05:34]} 15. Qe2 {[%emt 0:05:56]} Be7 {[%emt 0:08:00]} 16. Rac1 {[%emt 0:03:24]} Nc5 {[%emt 0:13:46]} 17. Nd4 {[%emt 0:17:27]} Bxg2 {[%emt 0:00:51]} 18. Kxg2 {[%emt 0:00:14]} b4 {[%emt 0:03:17]} 19. Nb1 {[%emt 0:00:34]} e5 {[%emt 0:09:08]} 20. Nf5 {[%emt 0:01:12]} Bf8 {[%emt 0:00:46]} 21. f3 {[%emt 0:05:51]} g6 {[%emt 0:03:24]} 22. Nh4 {[%emt 0:00:32]} e4 {[%emt 0:01:25]} 23. b3 {[%emt 0:08:04]} Qb7 {[%emt 0:09:05]} 24. Rc4 {[%emt 0:02:05]} Nd3 {[%emt 0:01:33]} 25. fxe4 Rxc4 {[%emt 0:02:04]} 26. bxc4 {[%emt 0:04:40]} Nxe4 {[%emt 0:02:04]} 27. Qf3 {[%emt 0:02:42]} Ne5 {[%emt 0:00:30]} 28. Qf4 {[%emt 0:05:27]} Nxd2+ {[%emt 0:01:08]} 29. Nf3 {[%emt 0:02:07]} Nexf3 {[%emt 0:00:34]} 30. Rxf3 {[%emt 0:00:02]} Qxf3+ {[%emt 0:00:15]} 31. Qxf3 {[%emt 0:00:10]} Nxf3 {[%emt 0:00:05]} 32. Kxf3 {[%emt 0:00:10]} Rd1 {[%emt 0:00:09]} 0-1

[Event "WTCC-50 2018"]
[Site "Radebeul"]
[Date "2018.07.15"]
[Round "9"]
[White "Cedervall, Magnus"]
[Black "Gempe, Thomas"]
[Result "1/2-1/2"]
[ECO "B06"]
[WhiteElo "1928"]
[BlackElo "2178"]
[Annotator "NA"]
[PlyCount "33"]
[EventDate "2018.07.07"]
[EventType "team-tourn"]
[EventCountry "GER"]
[SourceTitle "playchess.com"]
[Source "ChessBase"]
[SourceQuality "1"]
[TimeControl "40/5400+30:1800+30"]

1. e4 {[%emt 0:00:00]} g6 {[%emt 0:00:00]} 2. d4 {[%emt 0:00:01]} Bg7 {[%emt 0:00:00]} 3. Nc3 {[%emt 0:00:15]} d6 {[%emt 0:00:04]} 4. Be3 {[%emt 0:00:14]} a6 {[%emt 0:00:49]} 5. Qd2 {[%emt 0:01:06]} Nd7 {[%emt 0:00:55]} 6. Nge2 {[%emt 0:05:45]} b5 {[%emt 0:01:02]} 7. a3 {[%emt 0:00:41]} Bb7 {[%emt 0:01:16]} 8. f3 {[%emt 0:00:39]} Rc8 {[%emt 0:06:37]} 9. g3 {[%emt 0:06:01]} Nb6 {[%emt 0:06:07]} 10. Nf4 {[%emt 0:08:07]} Nf6 {[%emt 0:05:18]} 11. Be2 {[%emt 0:14:55]} O-O {[%emt 0:13:36]} 12. h4 {[%emt 0:03:56]} Nfd7 {[%emt 0:18:54]} 13. h5 {[%emt 0:07:40]} e5 {[%emt 0:08:54]} 14. Nfd5 {[%emt 0:18:55]} Nxd5 {[%emt 0:00:47]} 15. exd5 {[%emt 0:05:43]} exd4 {[%emt 0:05:25]} 16. Bxd4 {[%emt 0:00:42]} Bxd4 {[%emt 0:00:09]} 17. Qxd4 {[%emt 0:01:07]} 1/2-1/2

[Event "WTCC-50 2018"]
[Site "Radebeul"]
[Date "2018.07.15"]
[Round "9"]
[White "Karlsson, Ulf"]
[Black "Schultz, Andreas"]
[Result "1/2-1/2"]
[ECO "C07"]
[WhiteElo "1918"]
[BlackElo "2211"]
[Annotator "NA"]
[PlyCount "122"]
[EventDate "2018.07.07"]
[EventType "team-tourn"]
[EventCountry "GER"]
[SourceTitle "playchess.com"]
[Source "ChessBase"]
[SourceQuality "1"]
[TimeControl "40/5400+30:1800+30"]

1. e4 {[%emt 0:00:00]} e6 {[%emt 0:00:00]} 2. d4 {[%emt 0:00:00]} d5 {[%emt 0:00:00]} 3. Nd2 {[%emt 0:00:01]} c5 {[%emt 0:00:00]} 4. Ngf3 {[%emt 0:00:24]} cxd4 {[%emt 0:00:05]} 5. exd5 {[%emt 0:00:26]} Qxd5 {[%emt 0:00:14]} 6. Bc4 {[%emt 0:00:24]} Qd6 {[%emt 0:00:07]} 7. O-O {[%emt 0:04:48]} Nf6 {[%emt 0:00:46]} 8. Nb3 {[%emt 0:04:08]} Nc6 {[%emt 0:00:29]} 9. Nbxd4 {[%emt 0:01:46]} Nxd4 {[%emt 0:00:17]} 10. Nxd4 {[%emt 0:03:08]} a6 {[%emt 0:00:58]} 11. c3 {[%emt 0:08:26]} Qc7 {[%emt 0:04:44]} 12. Bd3 {[%emt 0:02:42]} Bd6 {[%emt 0:00:48]} 13. h3 {[%emt 0:00:37]} h6 {[%emt 0:02:59]} 14. Qf3 {[%emt 0:05:36]} Bh2+ {[%emt 0:00:52]} 15. Kh1 {[%emt 0:00:19]} Be5 {[%emt 0:00:11]} 16. Qe2 {[%emt 0:03:10]} O-O {[%emt 0:01:48]} 17. Re1 {[%emt 0:04:24]} Bxd4 {[%emt 0:07:24]} 18. cxd4 {[%emt 0:00:30]} Bd7 {[%emt 0:00:39]} 19. Qe5 {[%emt 0:05:26]} Qxe5 {[%emt 0:00:57]} 20. dxe5 {[%emt 0:00:23]} Nd5 {[%emt 0:00:12]} 21. Be4 {[%emt 0:01:07]} Bc6 {[%emt 0:00:10]} 22. Bxd5 {[%emt 0:02:49]} Bxd5 {[%emt 0:00:10]} 23. Bd2 {[%emt 0:00:24]} Rfc8 {[%emt 0:00:26]} 24. a3 {[%emt 0:01:13]} Rc2 {[%emt 0:00:43]} 25. Bc3 {[%emt 0:03:20]} Rxf2 {[%emt 0:01:03]} 26. Rg1 {[%emt 0:00:06]} Rd8 {[%emt 0:03:56]} 27. Kh2 {[%emt 0:00:29]} Bc4 {[%emt 0:03:30]} 28. Rad1 {[%emt 0:05:07]} Rd5 {[%emt 0:03:22]} 29. Kg3 {[%emt 0:08:32]} Rc2 {[%emt 0:03:03]} 30. Rc1 {[%emt 0:07:52]} Rd3+ {[%emt 0:05:15]} 31. Kh2 {[%emt 0:00:25]} Rf2 {[%emt 0:04:43]} 32. Rcd1 {[%emt 0:08:53]} Rxd1 {[%emt 0:08:43]} 33. Rxd1 {[%emt 0:00:06]} Bd5 {[%emt 0:00:10]} 34. Rd2 {[%emt 0:00:18]} Rf1 {[%emt 0:00:16]} 35. Kg3 {[%emt 0:00:57]} f5 {[%emt 0:03:10]} 36. exf6 {[%emt 0:02:38]} gxf6 {[%emt 0:00:13]} 37. Rf2 {[%emt 0:00:51]} Rxf2 38. Kxf2 {[%emt 0:00:01]} Kf7 {[%emt 0:01:29]} 39. g3 {[%emt 0:01:04]} Bb3 {[%emt 0:01:54]} 40. Ke3 {[%emt 0:00:51]} Kg6 {[%emt 0:02:23]} 41. Bb4 {[%emt 0:33:22]} h5 {[%emt 0:34:16]} 42. h4 {[%emt 0:01:01]} Kf7 {[%emt 0:05:09]} 43. Ba5 {[%emt 0:02:18]} Ke7 {[%emt 0:00:18]} 44. Bb4+ {[%emt 0:03:00]} Kd7 {[%emt 0:01:27]} 45. Bc3 {[%emt 0:00:22]} e5 {[%emt 0:00:23]} 46. Ba5 {[%emt 0:00:18]} Ke7 {[%emt 0:02:38]} 47. Bb6 {[%emt 0:01:09]} Bd1 {[%emt 0:00:56]} 48. Ba5 {[%emt 0:00:10]} Kd6 {[%emt 0:00:17]} 49. Bd8 {[%emt 0:00:38]} f5 {[%emt 0:00:09]} 50. Kd2 {[%emt 0:01:26]} Bg4 {[%emt 0:00:18]} 51. Ke3 {[%emt 0:00:06]} Kd5 {[%emt 0:00:06]} 52. Bc7 {[%emt 0:01:15]} e4 {[%emt 0:00:12]} 53. Bd8 {[%emt 0:01:27]} Kc4 {[%emt 0:00:13]} 54. Bf6 {[%emt 0:00:18]} Bd1 {[%emt 0:01:46]} 55. Be5 {[%emt 0:00:40]} b6 {[%emt 0:01:47]} 56. Bc7 {[%emt 0:00:52]} Kc5 {[%emt 0:00:20]} 57. Be5 {[%emt 0:00:18]} a5 {[%emt 0:00:14]} 58. Bf6 {[%emt 0:00:09]} b5 {[%emt 0:00:53]} 59. Bd8 {[%emt 0:00:35]} a4 {[%emt 0:00:07]} 60. Bf6 {[%emt 0:00:46]} Kc4 {[%emt 0:01:46]} 61. Be5 {[%emt 0:00:32]} b4 {Kxe4} 1/2-1/2